bitfinex-derivatives/quotes_SOLF0:USTF0_20250923
["timestamp","ask_amount","ask_price","bid_price","bid_amount"]
[1758637585184,3.35340906,219.16,219.1,4.1047]
[1758637585381,3.35340906,219.15,219.06,3.33]
[1758637585585,2.42570987,219.17,219.06,3.33]
[1758637585586,3.35340906,219.14,219.06,3.33]
[1758637585880,3.35340906,219.13,219.06,3.33]
[1758637586084,3.35340906,219.12,219.08,4.1051]
[1758637586386,3.35340906,219.11,219.08,4.1051]
[1758637586589,7.45,219.13,219.08,4.1051]
[1758637586787,3.36249958,219.12,219.08,4.1051]
[1758637586983,3.36249958,219.11,219.06,4.1056]
[1758637587191,6.53000987,219.14,219.06,4.1056]
[1758637587192,3.36249958,219.1,219.06,4.1056]
[1758637587381,3.36249958,219.09,219.06,4.1056]
[1758637587688,11.5545,219.13,219.04,4.106]
[1758637587888,5.78830193,219.12,219.04,4.106]
[1758637588088,3.36259206,219.11,219.02,119.63]
[1758637588384,10.81259206,219.1,219.02,4.1062]
[1758637588585,3.36259206,219.09,219.02,4.1062]
[1758637588781,3.36259206,219.08,219.01,3.33]
[1758637588982,3.36259206,219.07,219.03,4.106]
[1758637589192,7.45,219.1,219.03,4.106]
[1758637589390,3.36052036,219.09,219.04,4.1058]
[1758637589591,3.36052036,219.08,219.04,4.1058]
[1758637589791,3.36052036,219.07,219.04,3.33]
[1758637590086,7.45,219.11,219.04,3.33]
[1758637590293,10.80981467,219.1,219.07,4.1054]
[1758637590589,3.35981467,219.09,219.07,4.1054]
[1758637590784,3.35981467,219.08,219.07,4.1054]
[1758637590984,7.45,219.1,219.07,4.1054]
[1758637591296,3.35923377,219.09,219.07,4.1054]
[1758637591590,9.87570987,219.15,219.08,4.1051]
[1758637591786,3.35924758,219.14,219.08,4.1051]
[1758637591987,10.80924758,219.13,219.08,4.1051]
[1758637592195,3.35924758,219.12,219.08,4.1051]
[1758637592486,10.80924758,219.12,219.08,4.1051]
[1758637592686,3.35924758,219.11,219.08,4.1051]
[1758637592891,3.35924758,219.11,219.1,4.1049]
[1758637593079,3.35924758,219.16,219.09,5.75570987]
[1758637593279,3.35924758,219.15,219.09,5.75570987]
[1758637593484,3.35924758,219.14,219.09,5.75570987]
[1758637593788,3.35924758,219.13,219.11,4.1045]
[1758637593994,3.35924758,219.12,219.09,2.42570987]
[1758637594296,7.45,219.17,219.1,3.33]
[1758637594593,3.36100621,219.16,219.14,4.1039]
[1758637594786,3.36100621,219.15,219.14,4.1039]
[1758637594989,3.36100621,219.15,219.14,7.4339]
[1758637595186,5.274e-05,219.2,219.14,3.79]
[1758637595388,0.71182273,219.23,219.16,2.42570987]
[1758637596087,0.71182273,219.23,219.18,4.1033]
[1758637596282,7.45,219.22,219.18,4.1033]
[1758637596696,0.71182273,219.23,219.18,4.1033]
[1758637596894,8.16182273,219.23,219.16,2.42570987]
[1758637597295,7.45,219.21,219.12,2.42570987]
[1758637598796,4.103,219.2,219.12,2.42570987]
[1758637599997,4.103,219.2,219.12,6.53010987]
[1758637600295,7.45,219.21,219.12,6.53010987]
[1758637600698,4.1037,219.17,219.09,2.42570987]
[1758637600999,7.45,219.16,219.07,2.42570987]
[1758637602802,7.45,219.16,219.1,4.1047]
[1758637603793,7.45,219.16,219.07,2.42570987]
[1758637604291,7.45,219.16,219.07,5.75570987]
[1758637605098,7.45,219.16,219.1,4.1047]
[1758637605306,7.45,219.16,219.07,5.75570987]
[1758637606189,7.45,219.16,219.08,4.1052]
[1758637606404,7.45,219.16,219.07,5.75570987]
[1758637606896,7.45,219.16,219.07,3.33]
[1758637607306,3.34021819,219.15,219.07,3.33]
[1758637607506,3.34021819,219.14,219.08,4.1052]
[1758637607704,10.79021819,219.13,219.07,3.33]
[1758637607902,3.34021753,219.12,219.07,3.33]
[1758637608100,7.45,219.14,219.07,3.33]
[1758637608295,10.7900159,219.13,219.09,4.1049]
[1758637608505,3.3400159,219.12,219.09,4.1049]
[1758637608807,7.45,219.13,219.09,4.1049]
[1758637609004,3.33924495,219.12,219.09,4.1049]
[1758637609197,7.45,219.12,219.09,4.1049]
[1758637609902,7.45,219.12,219.07,3.33]
[1758637610107,10.78858015,219.11,219.04,2.42570987]
[1758637610309,7.45,219.11,219.04,2.42570987]
[1758637611800,7.45,219.11,219.08,4.1051]
[1758637612410,2.42570987,219.13,219.08,7.4351]
[1758637612610,10.78855089,219.12,219.08,4.1051]
[1758637612909,3.33855089,219.11,219.08,4.1051]
[1758637614004,7.46,219.12,219.08,4.1051]
[1758637614302,10.79917551,219.11,219.08,4.1051]
[1758637614503,7.46,219.11,219.08,4.1051]
[1758637614803,7.46,219.11,219.09,4.1049]
[1758637615710,3.369061,219.1,219.09,4.1049]
[1758637615910,9.88570987,219.13,219.09,4.1049]
[1758637616208,10.82961354,219.12,219.09,4.1049]
[1758637616410,10.82961354,219.11,219.09,4.1049]
[1758637616603,3.36961354,219.1,219.09,4.1049]
[1758637616808,7.46,219.11,219.09,4.1049]
[1758637617109,3.36882429,219.1,219.09,4.1049]
[1758637617409,7.46,219.18,219.15,4.1039]
[1758637617615,7.46,219.19,219.1,2.42570987]
[1758637619409,7.46,219.14,219.05,5.73570987]
[1758637619608,2.42570987,219.15,219.09,4.1049]
[1758637620311,7.46,219.14,219.09,4.1049]
[1758637620515,9.88570987,219.15,219.09,4.1049]
[1758637620705,7.46,219.14,219.06,63.8657]
[1758637620911,7.46,219.14,219.07,2.42570987]
[1758637621614,7.46,219.14,219.05,3.31]
[1758637622314,9.88570987,219.15,219.05,3.31]
[1758637622518,7.46,219.15,219.07,69.59630987]
[1758637622706,14.97409135,219.19,219.09,63.8568]
[1758637622907,9.88570987,219.19,219.09,63.8568]
[1758637623714,9.88570987,219.19,219.1,4.1047]
[1758637623910,7.46,219.19,219.11,3.31]
[1758637624112,5.08838148,219.22,219.15,3.31]
[1758637624416,14.97409135,219.24,219.16,63.836]
[1758637624613,9.88570987,219.24,219.16,66.26170987]
[1758637624917,2.42570987,219.24,219.16,66.26170987]
[1758637625514,350.04838148,219.27,219.19,63.8271]
[1758637625710,350.04838148,219.27,219.18,3.31]
[1758637625711,344.96,219.27,219.18,3.31]
[1758637625909,7.46,219.26,219.22,4.1025]
[1758637626110,2.42570987,219.25,219.18,3.31]
[1758637627010,7.46,219.24,219.15,2.42570987]
[1758637627207,2.42570987,219.23,219.15,64.42570987]
[1758637627611,2.42570987,219.23,219.15,2.42570987]
[1758637627818,7.46,219.24,219.18,4.1032]
[1758637628118,7.46,219.24,219.15,2.42570987]
[1758637629311,3.34470294,219.23,219.15,2.42570987]
[1758637629517,3.34470294,219.22,219.16,4.1036]
[1758637629714,3.34470294,219.21,219.16,3.31]
[1758637629919,3.34470294,219.2,219.13,2.42570987]
[1758637630219,3.34470294,219.19,219.13,2.42570987]
[1758637630419,9.88570987,219.23,219.11,3.31]
[1758637630420,7.46,219.17,219.11,2.42570987]
[1758637630614,3.34470294,219.16,219.12,3.31]
[1758637630820,3.34470294,219.15,219.14,4.1041]
[1758637631726,3.34470294,219.15,219.11,63.8507]
[1758637631922,2.42570987,219.21,219.12,5.73570987]
[1758637632126,3.34382514,219.2,219.13,63.8447]
[1758637632326,3.34382514,219.19,219.13,63.8447]
[1758637632528,3.34382514,219.18,219.14,63.8421]
[1758637632724,7.4,219.22,219.15,3.31]
[1758637632923,3.34230592,219.21,219.16,4.1036]
[1758637633228,2.42570987,219.24,219.16,4.1036]
[1758637633229,10.74230592,219.2,219.16,4.1036]
[1758637633531,3.34230592,219.19,219.17,4.1034]
[1758637633833,3.34230592,219.18,219.17,4.1034]
[1758637634030,3.34230592,219.18,219.15,3.31]
[1758637634220,5.92e-06,219.17,219.16,2.42570987]
[1758637634425,7.4,219.26,219.17,63.8333]
[1758637634931,7.4,219.26,219.17,66.25900987]
[1758637635322,5.08838148,219.29,219.2,5.73570987]
[1758637635518,5.08838148,219.3,219.22,63.8185]
[1758637635724,7.4,219.31,219.23,2.42570987]
[1758637635922,112.77257222,219.35,219.2,5.73570987]
[1758637635923,2.42570987,219.29,219.2,5.73570987]
[1758637636130,2.42570987,219.27,219.2,3.31]
[1758637636330,7.4,219.26,219.15,67.1469]
[1758637636534,9.82570987,219.26,219.16,2.42570987]
[1758637637531,9.82570987,219.26,219.17,63.8334]
[1758637638435,9.82570987,219.26,219.16,2.42570987]
[1758637638930,9.82570987,219.26,219.17,63.8323]
[1758637639128,9.82570987,219.26,219.18,3.31]
[1758637639432,9.82570987,219.26,219.17,63.8323]
[1758637639433,7.4,219.31,219.24,63.8132]
[1758637639630,7.63257222,219.35,219.22,3.31]
[1758637639631,7.4,219.35,219.22,3.31]
[1758637639823,7.4,219.35,219.2,63.8247]
[1758637639824,7.4,219.29,219.2,63.8247]
[1758637640027,2.42570987,219.3,219.24,4.1022]
[1758637640229,9.82570987,219.3,219.21,63.8214]
[1758637640434,9.82570987,219.3,219.26,4.1018]
[1758637640732,7.63257222,219.36,219.26,4.1018]
[1758637640733,7.4,219.35,219.26,2.42570987]
[1758637641135,7.4,219.35,219.3,4.1011]
[1758637641433,9.82570987,219.36,219.3,4.1011]
[1758637641634,9.82570987,219.36,219.26,2.42570987]
[1758637642027,7.4,219.33,219.25,3.31]
[1758637642530,9.82570987,219.33,219.25,3.31]
[1758637642930,9.82570987,219.33,219.27,4.1016]
[1758637643430,7.4,219.33,219.25,3.31]
[1758637644433,7.4,219.33,219.27,63.804]
[1758637644633,2.42570987,219.36,219.27,66.22970987]
[1758637645229,352.12,219.37,219.31,4.1008]
[1758637645445,352.12,219.37,219.3,66.22090987]
[1758637645446,7.18,219.37,219.3,66.22090987]
[1758637646134,9.60570987,219.41,219.31,2.42570987]
[1758637646341,3.3202948,219.4,219.31,2.42570987]
[1758637646536,3.3202948,219.39,219.3,63.7952]
[1758637646732,3.3202948,219.38,219.34,4.1003]
[1758637646934,3.3202948,219.37,219.34,4.1003]
[1758637647132,3.3202948,219.36,219.34,4.1003]
[1758637647327,18.03013336,219.43,219.36,4.0999]
[1758637647328,7.18,219.4,219.36,4.0999]
[1758637647640,3.31849231,219.39,219.3,63.7952]
[1758637647835,3.31849231,219.38,219.3,63.7952]
[1758637648035,3.31849231,219.37,219.35,4.1]
[1758637648231,7.18,219.42,219.33,3.3]
[1758637648433,3.31780769,219.41,219.37,4.0996]
[1758637648636,10.49780769,219.4,219.29,115.92]
[1758637648837,3.31780769,219.39,219.3,63.7958]
[1758637649336,3.31780769,219.39,219.35,4.1]
[1758637649337,10.49780769,219.39,219.35,4.1]
[1758637649644,7.18,219.44,219.33,3.3]
[1758637649937,3.3157598,219.43,219.33,3.3]
[1758637650142,7.18,219.41,219.3,63.7945]
[1758637650333,3.3157598,219.4,219.35,4.1001]
[1758637650531,7.18,219.45,219.34,3.3]
[1758637650735,3.31436782,219.44,219.34,3.3]
[1758637650933,3.31436782,219.43,219.34,3.3]
[1758637651143,3.31436782,219.42,219.34,3.3]
[1758637651341,3.31436782,219.41,219.38,4.0995]
[1758637651543,3.31436782,219.4,219.38,4.0995]
[1758637651744,7.18,219.41,219.38,4.0995]
[1758637651945,133.49327335,219.46,219.36,4.1]
[1758637652142,7.18,219.44,219.36,4.1]
[1758637652347,7.18,219.44,219.34,3.3]
[1758637652348,3.31195464,219.43,219.34,3.3]
[1758637652642,3.31195464,219.42,219.38,4.0995]
[1758637652944,3.31195464,219.41,219.38,4.0995]
[1758637653141,7.18,219.42,219.38,4.0995]
[1758637653344,3.31050623,219.41,219.38,4.0995]
[1758637653539,7.18,219.42,219.38,4.0995]
[1758637653733,115.9,219.46,219.31,63.7929]
[1758637653734,3.30931662,219.41,219.36,4.1]
[1758637653943,7.18,219.39,219.3,3.3]
[1758637654349,7.18,219.37,219.25,3.78182817]
[1758637654535,7.18,219.37,219.25,7.08182817]
[1758637654739,7.18,219.37,219.27,63.8045]
[1758637655339,7.18,219.39,219.32,4.1006]
[1758637655644,3.30822452,219.38,219.32,4.1006]
[1758637655848,3.30822452,219.37,219.32,4.1006]
[1758637656043,7.18,219.39,219.32,4.1006]
[1758637656244,3.30857585,219.38,219.32,4.1006]
[1758637656439,3.30857585,219.37,219.32,4.1006]
[1758637656642,7.18,219.39,219.32,4.1006]
[1758637656844,3.78182817,219.43,219.34,4.1003]
[1758637656845,3.30917511,219.38,219.34,4.1003]
[1758637657050,10.48917511,219.37,219.34,4.1003]
[1758637657251,10.48917511,219.36,219.34,4.1003]
[1758637657448,7.18,219.41,219.31,4.1008]
[1758637657650,7.18,219.39,219.31,4.1008]
[1758637657947,3.30948475,219.38,219.31,4.1008]
[1758637658154,3.30948475,219.38,219.32,4.1006]
[1758637658457,3.30948475,219.38,219.32,3.3]
[1758637658644,7.18,219.41,219.33,4.1005]
[1758637658843,3.30986975,219.4,219.33,4.1005]
[1758637659150,3.30986975,219.39,219.33,4.1005]
[1758637659446,7.18,219.37,219.27,7.08182817]
[1758637659657,3.30986975,219.36,219.27,3.3]
[1758637660146,7.40996975,219.36,219.27,3.3]
[1758637660448,3.30986975,219.35,219.27,3.3]
[1758637661848,7.18,219.33,219.23,63.8163]
[1758637662050,3.30986975,219.32,219.23,63.8163]
[1758637663252,3.30986975,219.32,219.29,4.1012]
[1758637663453,5.08838148,219.4,219.29,63.7975]
[1758637663750,7.18,219.41,219.31,3.3]
[1758637664457,7.18,219.37,219.27,7.08182817]
[1758637664850,4.1001,219.36,219.3,4.1011]
[1758637665050,7.18,219.35,219.24,115.8]
[1758637665261,7.18,219.35,219.26,67.1075]
[1758637665452,5.08838148,219.41,219.31,4.1009]
[1758637665646,7.18,219.4,219.26,3.3]
[1758637665958,7.18,219.37,219.26,3.3]
[1758637666146,3.78182817,219.38,219.26,3.3]
[1758637666147,7.18,219.33,219.26,3.3]
[1758637666949,7.18,219.33,219.23,3.78182817]
[1758637666950,11.2807,219.33,219.25,4.102]
[1758637667156,7.18,219.33,219.25,4.102]
[1758637667354,7.18,219.33,219.22,3.3]
[1758637667847,4.1009,219.32,219.26,4.1017]
[1758637668852,7.18,219.33,219.27,4.1015]
[1758637671055,7.18,219.37,219.27,63.8045]
[1758637671456,11.2799,219.37,219.25,3.3]
[1758637671655,7.18,219.37,219.25,3.3]
[1758637671857,7.18,219.37,219.26,63.8069]
[1758637672859,7.18,219.37,219.32,4.1006]
[1758637673158,12.07838148,219.39,219.32,4.1006]
[1758637673660,6.99,219.39,219.32,4.1006]
[1758637674553,6.99,219.39,219.3,4.1011]
[1758637674752,6.99,219.38,219.3,4.1011]
[1758637674953,6.99,219.38,219.27,3.3]
[1758637675156,15.86020965,219.38,219.26,4.1018]
[1758637675458,15.86020965,219.38,219.23,3.27]
[1758637675459,6.99,219.35,219.23,3.27]
[1758637675661,3.31614095,219.34,219.23,3.27]
[1758637675858,3.31614095,219.33,219.24,4.1021]
[1758637676054,10.30614095,219.32,219.23,3.27]
[1758637676259,3.31614095,219.31,219.23,3.27]
[1758637676561,3.31614095,219.3,219.23,3.27]
[1758637676858,3.31614095,219.29,219.23,3.27]
[1758637677048,3.31614095,219.28,219.23,3.27]
[1758637677249,5.08838148,219.36,219.27,4.1015]
[1758637677450,19.17935158,219.35,219.23,3.27]
[1758637677654,6.99,219.33,219.17,3.27]
[1758637677856,4.1011,219.3,219.23,4.1023]
[1758637678056,3.31914193,219.29,219.23,4.1023]
[1758637678552,3.31914193,219.29,219.21,4.1027]
[1758637678761,3.31914193,219.29,219.2,3.27]
[1758637678962,3.31914193,219.28,219.2,3.27]
[1758637679158,3.31914193,219.28,219.16,183.35802817]
[1758637679159,3.31914193,219.27,219.22,4.1026]
[1758637679454,3.31914193,219.26,219.23,3.27]
[1758637679657,3.31914193,219.25,219.23,3.27]
[1758637679862,6.99,219.3,219.23,3.27]
[1758637680059,3.32245517,219.29,219.23,3.27]
[1758637680259,10.31245517,219.28,219.23,3.27]
[1758637680467,3.32245517,219.27,219.2,63.8235]
[1758637680662,5.08838148,219.32,219.2,63.8235]
[1758637680663,3.32245517,219.26,219.21,3.27]
[1758637680862,3.32245517,219.25,219.21,3.27]
[1758637681059,6.99,219.32,219.23,63.8162]
[1758637681263,3.3231146,219.31,219.23,63.8162]
[1758637681458,3.3231146,219.3,219.26,3.27]
[1758637681764,3.3231146,219.29,219.28,3.27]
[1758637682056,3.3231146,219.34,219.28,3.27]
[1758637682264,3.3231146,219.33,219.28,3.27]
[1758637682562,3.3231146,219.32,219.28,3.27]
[1758637682763,3.3231146,219.31,219.28,3.27]
[1758637683059,3.3231146,219.3,219.28,3.27]
[1758637683268,3.3231146,219.29,219.28,7.3715]
[1758637683862,7.63257222,219.38,219.28,7.3715]
[1758637683863,6.99,219.42,219.32,3.27]
[1758637684756,4.0987,219.44,219.37,4.0997]
[1758637684956,11.0887,219.44,219.37,4.0997]
[1758637685157,11.0887,219.44,219.32,67.0584]
[1758637685158,6.99,219.44,219.32,3.27]
[1758637685358,3.78182817,219.44,219.28,103.84]
[1758637685561,6.99,219.43,219.27,7.05182817]
[1758637685961,6.99,219.4,219.29,63.7984]
[1758637686159,6.99,219.4,219.3,3.27]
[1758637686362,11.0894,219.4,219.33,4.1006]
[1758637687066,6.99,219.4,219.33,4.1006]
[1758637687265,6.99,219.4,219.34,4.1002]
[1758637687567,6.99,219.4,219.3,3.27]
[1758637687974,6.99,219.4,219.31,63.7925]
[1758637688161,4.0987,219.44,219.37,4.0997]
[1758637688765,86.35,219.45,219.37,4.0997]
[1758637689263,90.4485,219.45,219.33,3.27]
[1758637689469,86.35,219.45,219.33,3.27]
[1758637689866,86.35,219.45,219.36,4.1]
[1758637690477,86.35,219.45,219.37,4.0996]
[1758637691159,90.4485,219.45,219.33,3.27]
[1758637691563,86.35,219.45,219.33,67.0564]
[1758637691765,86.35,219.45,219.37,4.0996]
[1758637692171,86.35,219.45,219.33,3.27]
[1758637692471,7.22,219.41,219.29,35.86]
[1758637692672,7.22,219.41,219.3,63.7959]
[1758637692874,7.22,219.41,219.37,4.0996]
[1758637693567,4.0984,219.45,219.37,4.0996]
[1758637695372,4.0984,219.45,219.38,4.0995]
[1758637695578,7.22,219.46,219.38,4.0995]
[1758637696163,7.22,219.46,219.4,4.0992]
[1758637697674,7.63257222,219.52,219.39,63.769]
[1758637697876,0.71005714,219.54,219.4,67.0559]
[1758637697877,7.22,219.51,219.4,67.0559]
[1758637698781,7.22,219.51,219.43,4.0986]
[1758637700177,20.95644854,219.51,219.36,3.29]
[1758637700671,20.95644854,219.51,219.38,3.29]
[1758637700672,7.22,219.49,219.38,3.29]
[1758637701875,11.3177,219.49,219.42,4.0987]
[1758637702977,4.0979,219.48,219.38,3.29]
[1758637703482,7.22,219.49,219.41,4.0989]
[1758637703884,7.22,219.49,219.38,63.7719]
[1758637704084,7.22,219.49,219.39,3.29]
[1758637704787,11.3177,219.49,219.43,4.0985]
[1758637705088,11.3177,219.49,219.39,3.29]
[1758637705785,11.3177,219.49,219.41,4.099]
[1758637706787,6.96,219.54,219.43,3.29]
[1758637707283,4.097,219.53,219.43,3.29]
[1758637708482,6.96,219.51,219.43,3.29]
[1758637708785,6.96,219.48,219.39,2.41838781]
[1758637710283,6.96,219.48,219.43,4.0985]
[1758637711682,2.41838781,219.51,219.43,4.0985]
[1758637711885,6.96,219.5,219.38,3.29]
[1758637712084,6.96,219.5,219.39,2.41838781]
[1758637712391,6.96,219.5,219.43,4.0986]
[1758637712690,77.23771252,219.57,219.46,69.45738781]
[1758637712691,6.96,219.57,219.46,69.45738781]
[1758637713289,6.96,219.57,219.47,63.7463]
[1758637713782,6.96,219.55,219.46,5.70838781]
[1758637714190,6.96,219.55,219.47,2.41838781]
[1758637714792,6.96,219.55,219.49,4.0975]
[1758637715589,6.96,219.57,219.5,4.0972]
[1758637716585,6.96,219.57,219.47,2.41838781]
[1758637717390,6.96,219.57,219.49,4.0974]
[1758637717992,11.0562,219.57,219.49,4.0974]
[1758637718491,6.96,219.54,219.45,6.51658781]
[1758637718686,11.0572,219.52,219.45,6.51658781]
[1758637718887,11.0572,219.52,219.45,2.41838781]
[1758637718888,6.96,219.52,219.45,2.41838781]
[1758637719696,4.0967,219.54,219.48,4.0977]
[1758637719992,6.96,219.55,219.48,2.41838781]
[1758637720590,6.96,219.55,219.45,67.0409]
[1758637720791,6.96,219.55,219.48,2.41838781]
[1758637721188,11.0561,219.57,219.5,4.0973]
[1758637721899,7.68968644,219.58,219.52,4.097]
[1758637722492,6.96,219.58,219.52,4.097]
[1758637723593,6.96,219.58,219.51,2.41838781]
[1758637723795,9.37838781,219.58,219.49,4.0976]
[1758637724891,9.37838781,219.58,219.51,4.0972]
[1758637724892,13.47428781,219.58,219.51,4.0972]
[1758637725697,6.96,219.58,219.51,4.0972]
[1758637725999,6.96,219.58,219.52,4.0968]
[1758637726196,6.96,219.58,219.49,3.29]
[1758637726397,6.96,219.58,219.47,63.7456]
[1758637726398,6.96,219.58,219.52,3.29]
[1758637726697,6.96,219.58,219.54,4.0965]
[1758637726891,4.0956,219.6,219.54,4.0965]
[1758637727199,11.0556,219.6,219.52,3.29]
[1758637727398,6.96,219.6,219.52,3.29]
[1758637728001,6.96,219.6,219.52,5.70838781]
[1758637728201,6.96,219.6,219.55,4.0963]
[1758637728396,6.96,219.6,219.55,7.3863]
[1758637728793,6.96,219.6,219.56,4.0961]
[1758637729201,6.96,219.6,219.56,7.3861]
[1758637729598,6.96,219.6,219.55,2.41838781]
[1758637729793,6.96,219.6,219.52,5.70838781]
[1758637730902,6.96,219.6,219.54,4.0965]
[1758637731603,4.0957,219.59,219.52,5.70838781]
[1758637731796,6.96,219.59,219.49,2.41838781]
[1758637732799,4.096,219.58,219.5,4.0973]
[1758637734504,6.96,219.59,219.49,5.69838781]
[1758637735804,11.0558,219.59,219.53,4.0968]
[1758637736304,6.96,219.59,219.53,4.0968]
[1758637737305,7.31,219.57,219.49,5.69838781]
[1758637739500,7.31,219.57,219.52,4.0968]
[1758637739802,7.31,219.57,219.52,7.3768]
[1758637739995,7.31,219.62,219.53,3.28]
[1758637741100,7.31,219.63,219.57,7.376]
[1758637741504,106.24,219.64,219.58,4.0958]
[1758637741699,113.55,219.64,219.55,2.41838781]
[1758637742301,117.6448,219.64,219.56,4.0962]
[1758637743704,115.96838781,219.64,219.53,3.28]
[1758637743910,7.31,219.61,219.52,2.41838781]
[1758637745102,7.31,219.61,219.53,4.0968]
[1758637745700,11.4054,219.61,219.52,3.28]
[1758637745905,9.72838781,219.61,219.52,5.69838781]
[1758637746810,4.0957,219.6,219.52,9.79518781]
[1758637747910,7.31,219.59,219.52,7.3768]
[1758637748712,7.31,219.59,219.53,6.51508781]
[1758637752124,7.31,219.59,219.53,4.0967]
[1758637752619,7.39,219.6,219.54,4.0965]
[1758637753524,11.4857,219.6,219.52,5.69838781]
[1758637753825,7.39,219.6,219.52,5.69838781]
[1758637754122,7.39,219.6,219.53,4.0967]
[1758637755630,12.46805975,219.64,219.56,3.27]
[1758637755831,7.39,219.64,219.56,3.27]
[1758637756126,4.0947,219.65,219.59,4.0955]
[1758637756325,12.46805975,219.66,219.59,4.0955]
[1758637756517,7.39,219.66,219.58,2.41838781]
[1758637756824,7.39,219.66,219.59,3.27]
[1758637757219,7.39,219.66,219.61,7.3653]
[1758637757414,12.46805975,219.67,219.61,7.3653]
[1758637757928,7.39,219.67,219.61,7.3653]
[1758637758424,7.39,219.67,219.61,4.0953]
[1758637760619,7.39,219.67,219.59,4.0957]
[1758637760818,7.39,219.67,219.59,2.41838781]
[1758637761230,7.39,219.67,219.58,7.3658]
[1758637761525,7.39,219.66,219.53,3.27]
[1758637761730,7.39,219.66,219.55,2.41838781]
[1758637762123,4.0946,219.65,219.57,4.096]
[1758637762823,7.39,219.63,219.56,3.27]
[1758637763228,7.39,219.63,219.56,5.68838781]
[1758637763930,7.39,219.63,219.56,9.78448781]
[1758637766525,7.39,219.63,219.57,4.0959]
[1758637769832,11.4851,219.63,219.57,4.0959]
[1758637770227,11.4851,219.63,219.55,4.0964]
[1758637770629,11.4851,219.63,219.53,3.25]
[1758637771326,7.39,219.63,219.57,4.096]
[1758637771532,7.39,219.63,219.54,3.25]
[1758637771934,4.0952,219.62,219.54,7.3466]
[1758637772132,7.45,219.61,219.54,3.25]
[1758637772732,7.45,219.64,219.54,3.25]
[1758637773638,7.45,219.64,219.61,7.3453]
[1758637774935,7.45,219.67,219.61,7.3453]
[1758637775544,7.45,219.67,219.61,3.25]
[1758637776341,7.45,219.67,219.6,4.0954]
[1758637777844,4.0945,219.66,219.6,4.0954]
[1758637779148,4.0945,219.66,219.58,4.0958]
[1758637779345,11.5445,219.66,219.57,3.25]
[1758637779739,11.5445,219.66,219.6,4.0954]
[1758637781341,11.5445,219.66,219.57,3.25]
[1758637782245,7.45,219.66,219.57,3.25]
[1758637783342,9.17235975,219.67,219.61,4.0952]
[1758637783538,7.45,219.66,219.61,4.0952]
[1758637784346,9.17235975,219.67,219.61,4.0952]
[1758637784542,7.45,219.66,219.61,4.0952]
[1758637784751,9.17235975,219.67,219.59,4.0957]
[1758637784951,7.45,219.66,219.58,3.25]
[1758637787747,16.62235975,219.67,219.61,4.0952]
[1758637787949,5.07805975,219.68,219.59,3.25]
[1758637788151,344.36,219.73,219.59,3.25]
[1758637788152,12.52805975,219.7,219.59,3.25]
[1758637788347,12.52805975,219.7,219.63,4.0948]
[1758637788548,12.52805975,219.7,219.62,3.25]
[1758637788549,7.45,219.7,219.62,3.25]
[1758637788857,7.45,219.71,219.61,3.25]
[1758637789956,11.5436,219.71,219.61,3.25]
[1758637790354,11.5436,219.71,219.64,4.0947]
[1758637790553,7.45,219.71,219.64,4.0947]
[1758637790752,7.45,219.71,219.6,3.77396678]
[1758637790947,7.45,219.71,219.57,3.25]
[1758637790948,12.52805975,219.71,219.57,3.25]